bitfinex/quotes_ETHUSD_20230902
["timestamp","ask_amount","ask_price","bid_price","bid_amount"]
[1693620381280,1.64218578,1630.6,1630.5,4.573]
[1693620381600,1.63741229,1630.6,1630.5,4.573]
[1693620385230,2.14593229,1630.6,1630.5,4.573]
[1693620385731,2.15070578,1630.6,1630.5,4.573]
[1693620386332,2.15070578,1630.6,1630.5,7.65485404]
[1693620386732,2.14593229,1630.6,1630.5,7.65485404]
[1693620386902,1.63741229,1630.6,1630.5,7.65485404]
[1693620399067,1.63741229,1630.6,1630.5,9.70785404]
[1693620404140,1.63741229,1630.7,1630.5,9.70785404]
[1693620404353,1.63741229,1630.7,1630.6,4.65485404]
[1693620404558,1.63741229,1630.7,1630.6,7.65485404]
[1693620409148,3.34487897,1630.7,1630.6,7.65485404]
[1693620410273,2.70271869,1630.7,1630.6,7.65485404]
[1693620411177,1.63741229,1630.7,1630.6,7.65485404]
[1693620411956,2.7027203,1630.7,1630.6,7.65485404]
[1693620412157,1.63741229,1630.7,1630.6,7.65485404]
[1693620415179,4.94289739,1630.7,1630.6,4.573]
[1693620415379,4.94289739,1630.7,1630.6,1.573]
[1693620415540,5.44914408,1630.7,1630.6,1.573]
[1693620415746,5.4539254,1630.7,1630.6,1.573]
[1693620418178,5.4539254,1630.7,1630.5,4.573]
[1693620418381,2.79060058,1630.7,1630.5,7.65485404]
[1693620420078,3.753841,1630.7,1630.5,7.65485404]
[1693620420279,1.70755414,1630.6,1630.5,7.65485404]
[1693620420668,1.71232763,1630.6,1630.5,7.65485404]
[1693620420984,1.71232763,1630.6,1630.5,4.573]
[1693620424282,1.71232763,1630.6,1630.5,4.61561]
[1693620425084,2.21916481,1630.6,1630.5,4.61561]
[1693620442138,1.71232763,1630.6,1630.5,4.61561]
[1693620442713,1.70755414,1630.6,1630.5,4.61561]
[1693620446655,1.71232763,1630.6,1630.5,4.61561]
[1693620446813,2.21851481,1630.6,1630.5,4.61561]
[1693620454125,3.81662056,1630.6,1630.5,4.61561]
[1693620454454,2.21851481,1630.6,1630.5,4.61561]
[1693620454660,3.81662097,1630.6,1630.5,4.61561]
[1693620462229,4.77986139,1630.6,1630.5,4.61561]
[1693620463298,4.78440153,1630.6,1630.5,4.61561]
[1693620467870,4.78440153,1630.6,1630.5,3.04261]
[1693620469866,4.14042927,1630.6,1630.5,3.04261]
[1693620471307,9.08917879,1630.6,1630.5,0.04261]
[1693620471459,6.1913036,1630.6,1630.5,0.04261]
[1693620471788,6.1913036,1630.6,1630.1,31.483]
[1693620471993,1.63741229,1630.2,1630.0,1.63567]
[1693620472191,1.63741229,1630.2,1630.0,4.71752404]
[1693620472391,0.50095944,1630.1,1630.0,4.71752404]
[1693620472563,0.5056938,1630.1,1630.0,4.71752404]
[1693620472766,0.00473436,1630.1,1630.0,4.71752404]
[1693620473096,0.00030436,1630.1,1630.0,4.71752404]
[1693620473694,1.63741229,1630.2,1630.0,4.71752404]
[1693620474195,0.49894513,1630.1,1630.0,1.63567]
[1693620474494,1.63741229,1630.2,1630.0,1.63567]
[1693620474892,0.49894513,1630.1,1630.0,1.63567]
[1693620475095,1.63741229,1630.2,1630.0,1.63567]
[1693620475997,1.63741229,1630.2,1630.0,2.13346675]
[1693620479768,0.49841291,1630.1,1630.0,2.13346675]
[1693620479970,1.63741229,1630.2,1630.0,2.13346675]
[1693620485366,2.05291944,1630.2,1630.0,2.13346675]
[1693620485766,1.63741229,1630.2,1630.0,2.13346675]
[1693620486297,0.49841291,1630.1,1630.0,2.13346675]
[1693620486596,1.63741229,1630.2,1630.0,2.13346675]
[1693620487204,0.49841291,1630.1,1630.0,2.13346675]
[1693620487797,1.63741229,1630.2,1630.0,2.13346675]
[1693620488300,0.49841291,1630.1,1630.0,2.13346675]
[1693620488868,3.54521229,1630.2,1630.0,2.13346675]
[1693620489280,0.49841291,1630.1,1630.0,2.13346675]
[1693620489807,3.54521229,1630.2,1630.0,2.13346675]
[1693620490206,0.49841291,1630.1,1630.0,2.13346675]
[1693620490501,3.54521229,1630.2,1630.0,2.13346675]
[1693620490874,0.49841291,1630.1,1630.0,2.13346675]
[1693620491071,0.49329291,1630.1,1630.0,2.13346675]
[1693620491371,3.54521229,1630.2,1630.0,2.13346675]
[1693620491706,0.00456397,1630.1,1630.0,2.13346675]
[1693620492612,3.54521229,1630.2,1630.0,2.13346675]
[1693620492810,4.60742863,1630.2,1630.0,0.56046675]
[1693620493108,3.80598446,1630.1,1630.0,0.06267]
[1693620493608,4.12766406,1630.1,1630.0,0.06267]
[1693620493776,5.41894641,1630.1,1630.0,0.06267]
[1693620493976,4.13222803,1630.1,1630.0,0.06267]
[1693620494171,5.23136941,1630.1,1630.0,0.06267]
[1693620494810,6.51808779,1630.1,1630.0,0.06267]
[1693620495378,5.23136941,1630.1,1630.0,0.06267]
[1693620499620,6.51808779,1630.1,1630.0,0.06267]
[1693620501895,7.68465813,1630.1,1629.9,0.49253959]
[1693620502099,4.26731223,1630.0,1629.8,4.573]
[1693620502526,0.50081389,1629.9,1629.8,4.573]
[1693620502726,0.5053622,1629.9,1629.8,4.573]
[1693620504740,0.5053622,1629.9,1629.8,5.05216218]
[1693620505615,3.84972569,1629.9,1629.8,5.05216218]
[1693620508633,5.44842804,1629.9,1629.8,5.05216218]
[1693620508803,3.84972569,1629.9,1629.8,5.05216218]
[1693620509516,3.8500467,1629.9,1629.8,5.05216218]
[1693620509718,5.44874573,1629.9,1629.8,5.05216218]
[1693620513637,6.41095477,1629.9,1629.8,5.05216218]
[1693620514665,6.41175531,1629.9,1629.8,5.05216218]
[1693620515641,5.76948208,1629.9,1629.8,5.05216218]
[1693620519558,6.41229889,1629.9,1629.8,5.05216218]
[1693620522633,5.45008985,1629.9,1629.8,5.05216218]
[1693620522942,2.21397853,1629.9,1629.8,8.13401622]
[1693620523127,0.23522555,1629.9,1629.8,9.22770808]
[1693620523329,2.59962133,1630.1,1630.0,1.573]
[1693620523548,5.26380173,1630.1,1630.0,8.2685459]
[1693620523749,4.30159269,1630.1,1630.0,8.2685459]
[1693620524689,3.23793129,1630.1,1630.0,8.2685459]
[1693620525587,2.17225913,1630.1,1630.0,8.2685459]
[1693620526006,1.64163795,1630.1,1630.0,8.2685459]
[1693620526368,0.00422566,1630.1,1630.0,8.2685459]
[1693620526616,1.06567078,1630.2,1630.0,8.2685459]
[1693620526914,1.06567078,1630.2,1630.1,3.6955459]
[1693620527074,2.66417416,1630.2,1630.1,6.6955459]
[1693620527273,3.19485204,1630.2,1630.1,6.6955459]
[1693620527697,1.06567078,1630.2,1630.1,6.6955459]
[1693620528612,1.63741229,1630.3,1630.1,6.6955459]
[1693620528771,1.63741229,1630.3,1630.2,3.0]
[1693620529212,4.30157537,1630.3,1630.2,3.0]
[1693620529724,4.30581668,1630.3,1630.2,3.0]
[1693620530612,2.70307752,1630.3,1630.2,3.0]
[1693620532033,2.70307752,1630.3,1630.2,4.573]
[1693620532238,2.70305002,1630.3,1630.2,4.573]
[1693620533334,3.34598144,1630.3,1630.2,4.573]
[1693620536117,1.63741229,1630.3,1630.2,4.573]
[1693620559493,1.63741229,1630.3,1630.2,7.65485404]
[1693620562614,3.34596004,1630.3,1630.2,7.65485404]
[1693620565740,4.94438742,1630.3,1630.2,7.65485404]
[1693620566242,5.46770533,1630.3,1630.2,7.65485404]
[1693620566641,5.47194792,1630.3,1630.2,7.65485404]
[1693620568628,6.43415696,1630.3,1630.2,7.65485404]
[1693620569741,5.79122554,1630.3,1630.2,7.65485404]
[1693620607364,4.15381325,1630.3,1630.2,8.2685459]
[1693620607568,5.79122554,1630.3,1630.2,8.2685459]
[1693620622833,4.15381325,1630.3,1630.2,8.2685459]
[1693620622995,0.5275605,1630.3,1630.2,15.2727034]
[1693620623328,0.00424259,1630.3,1630.2,15.2727034]
[1693620623719,2.28155929,1630.5,1630.2,15.2727034]
[1693620623894,2.28155929,1630.5,1630.3,8.6997034]
[1693620624095,2.28155929,1630.5,1630.4,4.573]
[1693620624431,1.63741229,1630.5,1630.4,8.2685459]
[1693620628259,1.63741229,1630.5,1630.4,8.7485459]
[1693620634470,2.539847,1630.7,1630.4,8.7485459]
[1693620634775,2.539847,1630.7,1630.6,1.573]
[1693620634967,3.30769502,1630.7,1630.6,7.65485404]
[1693620635271,3.91242482,1630.7,1630.6,7.65485404]
[1693620635767,3.30769502,1630.7,1630.6,7.65485404]
[1693620638875,1.70956621,1630.7,1630.6,7.65485404]
[1693620644294,5.17106833,1630.8,1630.6,7.65485404]
[1693620644590,5.17106833,1630.8,1630.7,1.573]
[1693620644782,6.00824361,1630.8,1630.7,4.573]
[1693620645492,5.36409661,1630.8,1630.7,4.573]
[1693620646993,6.0066139,1630.8,1630.7,4.573]
[1693620647195,5.36409661,1630.8,1630.7,4.573]
[1693620647507,6.00660774,1630.8,1630.7,4.573]
[1693620647661,5.36409661,1630.8,1630.7,4.573]
[1693620647999,6.00660618,1630.8,1630.7,4.573]
[1693620648296,5.36409661,1630.8,1630.7,4.573]
[1693620650003,5.97002983,1630.8,1630.7,4.573]
[1693620650387,5.97002983,1630.8,1630.7,7.65485404]
[1693620650694,3.40973562,1630.8,1630.7,7.65485404]
[1693620650883,2.34434551,1630.8,1630.7,7.65485404]
[1693620651217,1.73841229,1630.8,1630.7,7.65485404]
[1693620651766,3.44624159,1630.8,1630.7,7.65485404]
[1693620655303,5.04422143,1630.8,1630.7,7.65485404]
[1693620655806,3.44624159,1630.8,1630.7,7.65485404]
[1693620656472,5.04421086,1630.8,1630.7,7.65485404]
[1693620659187,5.04421086,1630.8,1630.7,8.58599322]
[1693620664416,3.40679857,1630.8,1630.7,8.58599322]
[1693620664583,3.40679857,1630.8,1630.7,9.06599322]
[1693620665986,1.8088293,1630.8,1630.7,9.06599322]
[1693620666399,2.38092882,1630.8,1630.7,9.06599322]
[1693620666591,3.44624159,1630.8,1630.7,9.06599322]
[1693620667629,1.8088293,1630.8,1630.7,9.06599322]
[1693620667996,3.44624159,1630.8,1630.7,9.06599322]
[1693620668200,5.04411958,1630.8,1630.7,9.06599322]
[1693620670617,5.04456927,1630.8,1630.7,9.06599322]
[1693620672417,3.44668505,1630.8,1630.7,9.06599322]
[1693620673422,3.4466475,1630.8,1630.7,9.06599322]
[1693620675788,3.44664845,1630.8,1630.7,8.13485404]
[1693620676121,2.70288401,1630.8,1630.6,0.49634964]
[1693620676415,1.63741229,1630.6,1630.5,48.53]
[1693620676594,1.62867229,1630.6,1630.5,48.53]
[1693620677689,1.6332692,1630.6,1630.5,48.53]
[1693620677895,1.6332692,1630.6,1630.5,51.53]
[1693620678722,1.62867229,1630.6,1630.5,51.53]
[1693620686225,1.62867229,1630.6,1630.5,51.71013363]
[1693620687222,1.62867229,1630.6,1630.5,54.79198767]
[1693620687395,1.62867229,1630.6,1630.5,57.45867953]
[1693620688240,3.3372097,1630.8,1630.5,59.03167953]
[1693620688447,2.37273798,1630.8,1630.7,1.573]
[1693620688646,5.03596844,1630.8,1630.7,5.2685459]
[1693620688813,3.43803016,1630.8,1630.7,8.7485459]
[1693620689019,5.03597209,1630.8,1630.7,8.7485459]
[1693620689549,5.49028457,1630.8,1630.7,8.7485459]
[1693620689853,5.49489712,1630.8,1630.7,8.7485459]
[1693620693750,5.39389712,1630.8,1630.7,8.7485459]
[1693620695347,6.35836884,1630.8,1630.7,8.7485459]
[1693620695732,5.39389712,1630.8,1630.7,8.7485459]
[1693620696150,6.35836884,1630.8,1630.7,8.7485459]
[1693620697033,5.39389712,1630.8,1630.7,8.7485459]
[1693620698250,6.35836884,1630.8,1630.7,8.7485459]
[1693620698957,5.71530315,1630.8,1630.7,3.0]
[1693620699120,5.71530315,1630.8,1630.6,4.573]
[1693620699326,3.30659947,1630.7,1630.6,7.65485404]
[1693620699821,3.76017853,1630.7,1630.6,7.65485404]
[1693620702635,4.39551078,1630.7,1630.5,48.53]
[1693620702960,5.89974348,1630.6,1630.4,0.4793943]
[1693620703160,3.30691373,1630.5,1630.1,3.573]
[1693620703371,3.30691373,1630.5,1630.3,3.08185404]
[1693620703661,1.62867229,1630.4,1630.3,3.08185404]
[1693620703821,1.63325482,1630.4,1630.3,3.08185404]
[1693620704931,1.63325482,1630.4,1630.3,6.08185404]
[1693620705761,1.62867229,1630.4,1630.3,6.08185404]
[1693620706858,1.63325355,1630.4,1630.3,6.08185404]
[1693620707764,1.62867229,1630.4,1630.3,6.08185404]
[1693620708654,1.62867229,1630.4,1630.3,7.65485404]
[1693620711672,3.23650937,1630.6,1630.3,7.65485404]
[1693620711886,1.62867229,1630.6,1630.5,1.573]
[1693620712087,1.62867229,1630.6,1630.5,5.2685459]
[1693620712370,0.96447172,1630.8,1630.5,10.3215459]
[1693620712371,3.23650937,1630.8,1630.5,10.3215459]
[1693620712586,3.23650937,1630.8,1630.7,1.573]
[1693620712743,3.23650937,1630.8,1630.7,7.65485404]
[1693620712942,3.68397284,1630.8,1630.7,7.65485404]
[1693620713172,6.34738064,1630.8,1630.7,7.65485404]
[1693620713873,6.35199319,1630.8,1630.7,7.65485404]
[1693620716394,5.70862783,1630.8,1630.7,7.65485404]
[1693620719283,6.35157138,1630.8,1630.7,7.65485404]
[1693620719482,5.70862783,1630.8,1630.7,7.65485404]
[1693620719683,6.35156852,1630.8,1630.7,7.65485404]
[1693620720091,6.3515714,1630.8,1630.7,7.65485404]
[1693620720261,6.35160414,1630.8,1630.7,7.65485404]
[1693620721193,5.70862783,1630.8,1630.7,7.65485404]
[1693620722397,6.35163642,1630.8,1630.7,7.65485404]
[1693620722579,5.70862783,1630.8,1630.7,7.65485404]
[1693620723303,6.3516337,1630.8,1630.7,7.65485404]
[1693620723602,5.70862783,1630.8,1630.7,7.65485404]
[1693620725205,6.35162807,1630.8,1630.7,8.13427978]
[1693620725617,5.70862783,1630.8,1630.7,8.13427978]
[1693620727301,6.3516225,1630.8,1630.7,8.13427978]
[1693620735517,5.38715078,1630.8,1630.7,8.13427978]
[1693620739121,3.7891061,1630.8,1630.7,8.13427978]
[1693620739324,2.08074831,1630.8,1630.7,8.13427978]
[1693620739495,2.08074831,1630.8,1630.7,8.61427978]
[1693620748334,0.45207602,1630.8,1630.7,8.61427978]
[1693620748535,2.08074831,1630.8,1630.7,8.61427978]
[1693620755217,3.78900182,1630.8,1630.7,8.61427978]
[1693620757219,5.38689382,1630.8,1630.7,8.61427978]
[1693620758452,3.75822153,1630.8,1630.7,8.61427978]
[1693620758959,5.38689382,1630.8,1630.7,8.61427978]
[1693620762463,3.78900182,1630.8,1630.7,8.61427978]
[1693620765573,2.16032953,1630.8,1630.7,8.61427978]
[1693620765972,3.78900182,1630.8,1630.7,8.61427978]
[1693620769936,3.789496,1630.8,1630.7,8.61427978]
[1693620770973,2.16082371,1630.8,1630.7,8.61427978]
[1693620771177,3.789496,1630.8,1630.7,8.61427978]
[1693620771681,5.38736171,1630.8,1630.7,8.61427978]
[1693620772473,3.75868942,1630.8,1630.7,8.61427978]
[1693620773780,5.38736171,1630.8,1630.7,8.61427978]
[1693620774576,5.36540171,1630.8,1630.7,8.61427978]
[1693620775581,5.36102171,1630.8,1630.7,8.61427978]
[1693620777684,3.73234942,1630.8,1630.7,8.61427978]
[1693620777885,5.36102171,1630.8,1630.7,8.61427978]
[1693620780185,3.73234942,1630.8,1630.7,8.61427978]
[1693620780391,5.36102171,1630.8,1630.7,8.61427978]
[1693620784001,6.32627857,1630.8,1630.7,8.61427978]
[1693620785198,4.69760628,1630.8,1630.7,8.61427978]
[1693620785497,6.32627857,1630.8,1630.7,8.61427978]
[1693620785897,4.69760628,1630.8,1630.7,8.61427978]
[1693620786201,5.36102171,1630.8,1630.7,8.61427978]
[1693620791113,3.73234942,1630.8,1630.7,8.61427978]
[1693620791284,5.36102171,1630.8,1630.7,8.61427978]
[1693620794036,3.73234942,1630.8,1630.7,8.61427978]
[1693620794220,0.42573602,1630.8,1630.7,13.94576102]
[1693620794383,0.42573602,1630.8,1630.7,15.94576102]
[1693620795290,0.00461255,1630.8,1630.7,15.94576102]
[1693620795807,3.26843372,1631.0,1630.7,15.94576102]
[1693620795989,3.26843372,1631.0,1630.9,1.573]
[1693620796195,5.28775513,1631.0,1630.9,8.13485404]
[1693620796914,5.29220502,1631.0,1630.9,8.13485404]
[1693620798317,5.29231497,1631.0,1630.9,8.13485404]
[1693620798823,5.9358213,1631.0,1630.9,8.13485404]
[1693620799933,6.45577798,1631.0,1630.9,8.13485404]
[1693620804734,5.49046274,1631.0,1630.9,8.13485404]
[1693620811612,5.49046274,1631.0,1630.9,8.62925067]
[1693620815245,5.49024548,1631.0,1630.9,8.62925067]
[1693620823936,6.45519434,1631.0,1630.9,8.62925067]
[1693620825468,8.05898286,1631.0,1630.9,3.0]
[1693620825769,1.62867229,1630.8,1630.7,2.05242574]
[1693620825947,2.27214894,1630.8,1630.7,5.13427978]
[1693620826141,3.8571187,1630.8,1630.7,8.13427978]
[1693620826869,3.86155294,1630.8,1630.7,8.13427978]
[1693620827836,3.34173013,1630.8,1630.7,8.13427978]
[1693620828769,3.33729589,1630.8,1630.7,8.13427978]
[1693620830381,4.93517716,1630.8,1630.7,8.13427978]
[1693620830737,5.45943421,1630.8,1630.7,8.13427978]
[1693620831370,3.83076192,1630.8,1630.7,10.13427978]
[1693620831684,0.52425705,1630.8,1630.7,11.22797164]
[1693620835194,0.52425705,1630.8,1630.7,10.61427978]
[1693620838855,0.52425705,1630.8,1630.7,16.1197422]
[1693620839063,0.46322422,1630.8,1630.7,16.1197422]
[1693620839589,0.00443424,1630.8,1630.7,16.1197422]
[1693620839795,0.031,1631.0,1630.7,16.1197422]
[1693620839993,0.031,1631.0,1630.9,1.573]
[1693620840288,0.031,1631.0,1630.9,7.13485404]
[1693620840492,0.031,1631.0,1630.9,10.13485404]
[1693620842772,0.03511446,1631.0,1630.9,10.13485404]
[1693620845788,0.031,1631.0,1630.9,10.13485404]
[1693620847211,0.031,1631.0,1630.9,10.62278337]
[1693620856016,0.031,1631.0,1630.9,11.23647523]
[1693620878672,0.02587,1631.0,1630.9,11.23647523]
[1693620880053,0.54243598,1631.0,1630.9,11.23647523]
[1693620880783,0.54655044,1631.0,1630.9,10.62278337]
[1693620881057,4.2045215,1631.0,1630.9,1.573]
[1693620881262,6.54018686,1631.0,1630.8,1.573]
[1693620881590,3.30632485,1630.9,1630.8,4.65485404]
[1693620881877,3.31043149,1630.9,1630.8,4.65485404]
[1693620882628,3.31043149,1630.9,1630.8,7.65485404]
[1693620886941,4.22254023,1630.9,1630.8,7.65485404]
[1693620887670,4.22254023,1630.9,1630.8,4.573]
[1693620887859,4.22254023,1630.9,1630.6,2.5025181]
[1693620887860,4.22254023,1630.9,1630.7,4.573]
[1693620888061,3.45442376,1630.9,1630.7,7.65485404]
[1693620888837,1.62867229,1630.8,1630.7,7.65485404]
[1693620889773,1.63277111,1630.8,1630.7,7.65485404]
[1693620889974,2.14923539,1630.8,1630.7,7.65485404]
[1693620897397,0.5205631,1630.8,1630.7,8.2685459]
[1693620905593,0.5205631,1630.8,1630.7,7.65485404]
[1693620906291,0.5205631,1630.8,1630.7,8.55457062]
[1693620906455,0.5205631,1630.8,1630.7,7.65485404]
[1693620906654,0.5205631,1630.8,1630.7,4.573]
[1693620906655,2.14923539,1630.8,1630.7,4.573]
[1693620907053,5.45605439,1630.8,1630.6,0.5025181]
[1693620907251,1.62867229,1630.5,1630.4,0.91171507]
[1693620907476,1.62867229,1630.5,1630.4,3.08185404]
[1693620907786,2.14894496,1630.5,1630.4,3.08185404]
[1693620908470,2.14894496,1630.5,1630.4,6.08185404]
[1693620909650,1.63274764,1630.5,1630.4,6.08185404]
[1693620910557,2.14894496,1630.5,1630.4,6.08185404]
[1693620911259,2.14894496,1630.5,1630.4,7.65485404]
[1693620911658,2.14679496,1630.5,1630.4,7.65485404]
[1693620917385,2.14679496,1630.5,1630.4,8.56169422]
[1693620920695,0.52027267,1630.5,1630.4,8.56169422]
[1693620920896,0.23048085,1630.7,1630.5,3.573]
[1693620921077,0.23048085,1630.7,1630.6,5.2685459]
[1693620921478,0.23048085,1630.7,1630.6,8.2685459]
[1693620922299,1.7817,1630.8,1630.6,8.2685459]
[1693620922499,1.7817,1630.8,1630.7,3.0]
[1693620922700,0.87302282,1630.9,1630.7,3.0]
[1693620923796,0.00378438,1630.8,1630.7,3.0]
[1693620924823,0.87302282,1630.9,1630.7,3.0]
[1693620925815,0.00378438,1630.8,1630.7,3.0]
[1693620926803,0.87302282,1630.9,1630.7,3.0]
[1693620927118,0.87302282,1630.9,1630.7,6.08185404]
[1693620927330,0.87302282,1630.9,1630.8,1.573]
[1693620927488,1.93821402,1630.9,1630.8,4.65485404]
[1693620927688,0.23048085,1630.9,1630.8,7.65485404]
[1693620928037,0.23427305,1630.9,1630.8,7.65485404]
[1693620928425,0.71361958,1630.9,1630.8,7.65485404]
[1693620938325,0.71361958,1630.9,1630.8,8.55555516]
[1693620940931,0.71361958,1630.9,1630.8,7.65485404]
[1693620941139,0.71361958,1630.9,1630.8,8.57791396]
[1693620945339,0.71361958,1630.9,1630.8,7.65485404]
[1693620950446,0.71361958,1630.9,1630.8,8.13485404]
[1693620952747,0.48313873,1630.9,1630.8,8.13485404]
[1693620952947,0.64254197,1631.1,1630.8,8.13485404]
[1693620952948,0.64247424,1631.3,1631.0,1.573]
[1693620953113,0.64247424,1631.3,1631.2,1.573]
[1693620953114,3.30496126,1631.3,1631.2,1.573]
[1693620953442,1.70747465,1631.3,1631.2,4.65485404]
[1693620953747,1.70747465,1631.3,1631.2,7.65485404]
[1693620953947,2.14715668,1631.3,1631.2,7.65485404]
[1693620954516,1.50468244,1631.3,1631.2,7.65485404]
[1693620954719,0.43968203,1631.3,1631.2,7.65485404]
[1693620955558,2.14713295,1631.3,1631.2,7.65485404]
[1693620957628,3.74460034,1631.3,1631.2,7.65485404]
[1693620961965,4.70786752,1631.3,1631.2,7.65485404]
[1693620963232,3.74460034,1631.3,1631.2,7.65485404]
[1693620963433,4.70786752,1631.3,1631.2,7.65485404]
[1693620964771,5.50088267,1631.3,1631.2,4.573]
[1693620965069,7.31029547,1631.3,1631.2,3.0]
[1693620965446,7.31029547,1631.3,1631.0,4.573]
[1693620965642,0.64224531,1631.1,1631.0,7.65485404]
[1693620965849,1.70722199,1631.1,1631.0,8.13929812]
[1693620966660,3.30478418,1631.1,1631.0,8.13929812]
[1693620966863,3.30849593,1631.1,1631.0,8.13929812]
[1693620967065,3.30849593,1631.1,1631.0,8.61929812]
[1693620967269,0.00371175,1631.1,1631.0,8.61929812]
[1693620967871,0.64224531,1631.2,1631.0,8.61929812]
[1693620968075,0.64224531,1631.2,1631.1,4.65485404]
[1693620968452,0.64224531,1631.2,1631.1,7.65485404]
[1693620968864,0.6458995,1631.2,1631.1,7.65485404]
[1693620969057,2.24336946,1631.2,1631.1,7.65485404]
[1693620974607,1.71087843,1631.2,1631.1,7.65485404]
[1693620975262,0.6458995,1631.2,1631.1,7.65485404]
[1693620975666,1.71087843,1631.2,1631.1,7.65485404]
[1693620977202,0.00365419,1631.2,1631.1,7.65485404]
[1693620977973,2.42844531,1631.3,1631.1,7.65485404]
[1693620978175,2.42844531,1631.3,1631.2,3.0]
[1693620978382,3.30465198,1631.3,1631.2,3.0]
[1693620978567,2.23968931,1631.3,1631.2,3.0]
[1693620978768,3.30465198,1631.3,1631.2,3.0]
[1693620978973,3.30822937,1631.3,1631.2,3.0]
[1693620980011,3.72910299,1631.3,1631.2,3.0]
[1693620980706,2.13165899,1631.3,1631.2,3.0]
[1693620985496,2.13165899,1631.3,1631.2,6.08185404]
[1693620985920,1.48941368,1631.3,1631.2,6.08185404]
[1693620986086,1.48940218,1631.3,1631.2,6.08185404]
[1693620986377,2.13189942,1631.3,1631.2,6.08185404]
[1693620986582,2.1319006,1631.3,1631.2,6.08185404]
[1693620988244,2.1319006,1631.3,1631.2,7.65485404]
[1693620988416,0.42445101,1631.3,1631.2,7.65485404]
[1693620988614,2.13189793,1631.3,1631.2,7.65485404]
[1693620988821,0.42445101,1631.3,1631.2,7.65485404]
[1693620992423,0.42445101,1631.3,1631.2,8.13485404]
[1693620992601,0.42445101,1631.3,1631.2,8.62212283]
[1693621034874,0.42445101,1631.3,1631.2,14.80364969]
[1693621035741,2.13181364,1631.3,1631.2,14.80364969]
[1693621043194,0.42445101,1631.3,1631.2,14.80364969]
[1693621043396,1.48930524,1631.3,1631.2,14.80364969]
[1693621043689,2.13180248,1631.3,1631.2,14.80364969]
[1693621050811,0.42445101,1631.3,1631.2,14.80364969]
[1693621050972,0.42445101,1631.3,1631.2,15.41734155]
[1693621051368,0.00357739,1631.3,1631.2,15.41734155]
[1693621051673,0.00357739,1631.3,1631.2,17.85044155]
[1693621051884,2.57279724,1631.5,1631.3,2.0]
[1693621052105,2.57279724,1631.5,1631.4,4.65485404]
[1693621052301,3.30443146,1631.5,1631.4,7.65485404]
[1693621052696,0.64249724,1631.5,1631.4,7.65485404]
[1693621052876,0.64569498,1631.5,1631.4,7.65485404]
[1693621053075,2.24285551,1631.5,1631.4,7.65485404]
[1693621053300,3.3076292,1631.5,1631.4,7.65485404]
[1693621053470,3.3076292,1631.5,1631.4,8.13485404]
[1693621053671,2.24285551,1631.5,1631.4,8.13485404]
[1693621054508,3.3076292,1631.5,1631.4,8.13485404]
[1693621054807,3.8114831,1631.5,1631.4,8.13485404]
[1693621058207,2.21432257,1631.5,1631.4,8.13485404]
[1693621059116,1.14954888,1631.5,1631.4,8.13485404]
[1693621059278,3.81151677,1631.5,1631.4,8.13485404]
[1693621059479,4.77526263,1631.5,1631.4,8.13485404]
[1693621060813,4.9166611,1631.5,1631.3,1.573]
[1693621060990,1.60823627,1631.4,1631.3,4.65485404]
[1693621061194,4.27020416,1631.4,1631.3,1.573]
[1693621061394,4.95481876,1631.4,1631.3,1.573]
[1693621061985,4.31471417,1631.4,1631.3,1.573]
[1693621069893,4.82102638,1631.4,1631.3,1.573]
[1693621071636,5.46423208,1631.4,1631.3,1.573]
[1693621071794,4.82102638,1631.4,1631.3,1.573]
[1693621072295,5.46422338,1631.4,1631.3,1.573]
[1693621072541,4.82102638,1631.4,1631.3,1.573]
[1693621072835,5.46422327,1631.4,1631.3,1.573]
[1693621073037,4.82102638,1631.4,1631.3,1.573]
[1693621073237,5.46421525,1631.4,1631.3,1.573]
[1693621083580,5.46417536,1631.4,1631.3,1.573]
[1693621086343,4.77956076,1631.4,1631.3,1.573]
[1693621087377,3.81488907,1631.4,1631.3,4.65485404]
[1693621087676,2.21752558,1631.4,1631.3,8.13485404]
[1693621087895,0.50950213,1631.4,1631.3,8.13485404]
[1693621101463,0.33933517,1631.4,1631.3,8.13485404]
[1693621125624,0.33933517,1631.4,1631.3,14.31579615]
[1693621126652,0.00318992,1631.4,1631.3,14.31579615]
[1693621126950,1.8201,1631.5,1631.3,14.31579615]
[1693621127124,1.8201,1631.5,1631.4,6.56185404]
[1693621127524,0.64311446,1631.6,1631.4,6.56185404]
[1693621127736,0.31654328,1631.5,1631.4,6.56185404]
[1693621127914,0.31974102,1631.5,1631.4,6.56185404]
[1693621131460,2.02761693,1631.5,1631.4,6.56185404]
[1693621131819,2.02761693,1631.5,1631.4,8.13485404]
[1693621140470,2.02761693,1631.5,1631.4,8.61480007]
[1693621142983,3.62475353,1631.5,1631.4,8.61480007]
[1693621143286,2.02761693,1631.5,1631.4,8.61480007]
[1693621143605,3.62475176,1631.5,1631.4,8.61480007]
[1693621148356,3.62475176,1631.5,1631.4,14.79569562]
[1693621152897,0.31974102,1631.5,1631.4,14.79569562]
[1693621153109,3.62535412,1631.5,1631.4,14.79569562]
[1693621153262,3.30881084,1631.5,1631.4,14.79569562]
[1693621153606,3.62535412,1631.5,1631.4,14.79569562]
[1693621154166,3.62535412,1631.5,1631.4,14.79568708]
[1693621161094,4.59093896,1631.5,1631.4,8.61480007]
[1693621161293,5.3646375,1631.5,1631.4,8.61480007]
[1693621162457,4.59093896,1631.5,1631.4,8.61480007]
[1693621163436,4.59093896,1631.5,1631.4,5.05294603]
[1693621163635,4.57385896,1631.5,1631.4,0.47994603]
[1693621163806,4.55410896,1631.5,1631.3,4.573]
[1693621164135,1.06475595,1631.4,1631.3,7.65485404]
[1693621164318,3.6276155,1631.4,1631.3,7.65485404]
[1693621164497,3.94410796,1631.4,1631.3,7.65485404]
[1693621164926,3.94717489,1631.4,1631.3,7.65485404]
[1693621165228,2.98159005,1631.4,1631.3,7.65485404]
[1693621165386,2.97852005,1631.4,1631.3,7.65485404]
[1693621172358,0.31955939,1631.4,1631.3,7.65485404]
[1693621175061,0.45346395,1631.4,1631.3,7.65485404]
[1693621181974,1.09656289,1631.4,1631.3,7.65485404]
[1693621185347,2.1614229,1631.4,1631.3,7.65485404]
[1693621186393,2.16138849,1631.4,1631.3,7.65485404]
[1693621187861,2.16138849,1631.4,1631.3,4.573]
[1693621188688,2.16138849,1631.4,1631.3,3.0]
[1693621197580,3.75869908,1631.4,1631.3,3.0]
[1693621197905,3.74696108,1631.4,1631.3,3.0]
[1693621203205,4.39920692,1631.4,1631.3,3.0]
[1693621203413,7.49382857,1631.4,1631.2,0.48726879]
[1693621203582,7.68646294,1631.3,1631.1,2.82460686]
[1693621203797,0.96496997,1631.2,1631.1,2.82460686]
[1693621204121,7.38492498,1631.2,1630.8,1.573]